fUST/lending_fUST_20260217
["ID","MTS","AMOUNT","RATE_DAILY","PERIOD"]
[405819340,1771337440196,-500.0,0.00015145,2]
[405819342,1771337440205,-500.0,0.00015145,2]
[405819344,1771337440214,-500.0,0.00015145,2]
[405819346,1771337440224,-500.0,0.00015145,2]
[405819348,1771337440233,-500.0,0.00015145,2]
[405819350,1771337440242,-500.0,0.00015145,2]
[405819352,1771337440251,-469.11707884,0.00015145,2]
[405819354,1771337440260,-481.38482877,0.00015145,2]
[405819356,1771337440269,-500.0,0.00015145,2]
[405819358,1771337440279,-500.0,0.00015145,2]
[405819360,1771337440287,-500.0,0.00015145,2]
[405819362,1771337440297,-500.0,0.00015145,2]
[405819364,1771337440307,-500.0,0.00015145,2]
[405819366,1771337440316,-500.0,0.00015145,2]
[405819368,1771337440325,-500.0,0.00015145,2]
[405819370,1771337440335,-500.0,0.00015145,2]
[405819372,1771337440344,-500.0,0.00015145,2]
[405819374,1771337440354,-500.0,0.00015145,2]
[405819376,1771337440363,-500.0,0.00015145,2]
[405819378,1771337440373,-500.0,0.00015145,2]
[405819380,1771337440382,-500.0,0.00015145,2]
[405819382,1771337440392,-500.0,0.00015145,2]
[405819384,1771337440402,-248.53958066,0.00015145,2]
[405819386,1771337440411,-500.0,0.00015145,2]
[405819388,1771337440420,-500.0,0.00015145,2]
[405819390,1771337440430,-500.0,0.00015145,2]
[405819392,1771337440439,-500.0,0.00015145,2]
[405819394,1771337440448,-500.0,0.00015145,2]
[405819396,1771337440457,-500.0,0.00015145,2]
[405819398,1771337440467,-500.0,0.00015145,2]
[405819400,1771337440476,-500.0,0.00015145,2]
[405819402,1771337440486,-561.23956558,0.00015145,2]
[405819404,1771337440495,-499.99999999,0.00015145,2]
[405819407,1771337440514,-845.032954,0.00015185,2]
[405819409,1771337440525,-367.50892284,0.00015243,2]
[405819411,1771337440535,-157.98,0.0001649,2]
[405819413,1771337440544,-1680.0,0.00016548,2]
[405819416,1771337440553,-212.85322009,0.00016562,2]
[405819417,1771337440563,-420.0,0.00016571,2]
[405819420,1771337440572,-200.11,0.00016656,2]
[405819422,1771337440582,-471.0,0.00017571,2]
[405819424,1771337440591,-816.0,0.00017571,2]
[405819426,1771337440600,-3247.82843324,0.0001783,2]
[405819428,1771337440610,-743.45912368,0.0001812,2]
[405819430,1771337440619,-587.0,0.00018133,2]
[405819432,1771337440629,-720.0,0.00018202,2]
[405819434,1771337440639,-245.32235536,0.00018562,2]
[405819436,1771337440648,-7724.91256528,0.00018596,2]
[405819438,1771337440658,-823.0,0.00019843,2]
[405819440,1771337440668,-150.0,0.0002,10]
[405819442,1771337440677,-157.98,0.0002036,2]
[405819444,1771337440686,-277.79149063,0.00020562,2]
[405819446,1771337440696,-180.303,0.00020707,2]
[405819448,1771337440706,-150.0,0.00021,2]
[405819450,1771337440716,-1152.0,0.00021714,2]
[405819452,1771337440725,-48.64929979,0.00021918,2]
[405819454,1771337440738,-101.35070021,0.00021918,2]
[405819456,1771337440748,-300.94,0.00021931,7]
[405819458,1771337440757,-2123.7840046,0.00022146,2]
[405819700,1771337443232,-432.0,0.00022146,10]
[405819702,1771337443248,-90.19577767,0.00022146,2]
[405819704,1771337443261,-3256.78985874,0.00022146,2]
[405819709,1771337443295,-408.528,0.00022146,2]
[405819711,1771337443306,-1845.61492427,0.00022146,2]
[405819713,1771337443316,-300.0,0.00022466,2]
[405819715,1771337443326,-310.2606259,0.00022562,2]
[405819717,1771337443335,-157.11901119,0.00023014,2]
[405819719,1771337443344,-4496.79825704,0.00023112,2]
[405819954,1771337445840,-808.49787126,0.00023112,2]
[405819955,1771337445850,-831.0,0.00023112,10]
[405819957,1771337445860,-161.8385825,0.00023279,2]
[405819959,1771337445871,-157.98,0.0002336,2]
[405819961,1771337445885,-244.32,0.000235,3]
[405819962,1771337445894,-1613.0,0.00023761,2]
[405819964,1771337445905,-985.38019555,0.00023933,2]
[405819966,1771337445916,-10597.07234672,0.0002399,2]
[405819969,1771337445935,-166.93266953,0.0002399,3]
[405819972,1771337445948,-630.0,0.0002399,3]
[405819974,1771337445961,-630.0,0.0002399,3]
[405819976,1771337445973,-630.0,0.0002399,3]
[405819979,1771337445987,-630.0,0.0002399,3]
[405819981,1771337445998,-630.0,0.0002399,3]
[405819983,1771337446009,-630.0,0.0002399,3]
[405819985,1771337446019,-630.0,0.0002399,3]
[405819988,1771337446031,-630.0,0.0002399,3]
[405819991,1771337446043,-630.0,0.0002399,3]
[405819993,1771337446055,-630.0,0.0002399,3]
[405819995,1771337446067,-373.15818572,0.0002399,3]
[405819998,1771337446078,-253.88815481,0.00024157,2]
[405820000,1771337446089,-151.0,0.000243,5]
[405820002,1771337446100,-600.0,0.0002444,10]
[405820004,1771337446112,-800.0,0.00024466,2]
[405820006,1771337446124,-396.11705599,0.00024514,2]
[405820009,1771337446136,-342.72976117,0.00024562,2]
[405820011,1771337446149,-258.55,0.0002464,3]
[405820013,1771337446160,-775.67,0.0002464,3]
[405820015,1771337446171,-49572.79549537,0.0002465,2]
[405820017,1771337446183,-8307.85171488,0.0002465,2]
[405820021,1771337446204,-1075.6164,0.0002465,2]
[405820291,1771337537509,500.0,0.00012536,2]
[405820300,1771337549711,500.0,0.00013612,2]
[405820307,1771337579786,10000.0,0.00014,2]
[405820309,1771337597059,8337.7241557,0.00014,2]
[405820310,1771337597087,1000.0,0.00014,2]
[405820311,1771337612580,10000.0,0.000135,2]
[405820330,1771337656473,162.7,0.000135,2]
[405820374,1771338183507,153.76254475,0.00013273,2]
[405820378,1771338425250,-208.59521293,0.00013599,2]
[405820379,1771338425275,-500.0,0.00013699,2]
[405820380,1771338425302,-150.0,0.00013849,2]
[405820381,1771338425332,-662.2758443,0.00014,2]
[405820382,1771338425356,-67.35179646,0.00014247,2]
[405820383,1771338433083,-250.42353626,0.00013699,2]
[405820389,1771338545097,-251.29365746,0.00013699,2]
[405820390,1771338545119,-42.70634254,0.00013973,2]
[405820391,1771338562116,-107.29365746,0.00013973,2]
[405820393,1771338615668,500.0,0.00013699,2]
[405820427,1771338631904,-187.25769755,0.00014247,2]
[405820429,1771338631914,-624.0,0.00014247,2]
[405820431,1771338631923,-188.5389573,0.000156,2]
[405820433,1771338631932,-177.0,0.00015973,2]
[405820435,1771338631941,-177.498764,0.00017491,2]
[405820437,1771338631951,-170.461,0.0001788,2]
[405820439,1771338631960,-190.539,0.0001788,2]
[405820441,1771338631969,-425.0,0.0001788,2]
[405820443,1771338631978,-204.0,0.00017973,2]
[405820445,1771338631987,-351.01110008,0.00018,2]
[405820447,1771338631997,-798.0,0.00018023,5]
[405820448,1771338632006,-743.45912368,0.00018129,2]
[405820450,1771338632016,-231.0,0.00019973,2]
[405820452,1771338632025,-300.0,0.00019999,2]
[405820453,1771338632034,-374.75053659,0.00019999,2]
[405820458,1771338632125,-105.24946341,0.00019999,2]
[405820459,1771338632135,-270.95300075,0.0002,2]
[405820478,1771338638090,-390.32019803,0.00019999,5]
[405821038,1771338643466,-274.67980197,0.00019999,5]
[405821040,1771338643479,-957.69019803,0.0002,2]
[405821308,1771338646059,-257.25624599,0.00019999,2]
[405821310,1771338646070,-264.85126385,0.0002,2]
[405821414,1771338882860,150.0,0.000135,2]
[405821422,1771339144143,553.88285336,0.00013273,2]
[405821423,1771339184080,4269.0,0.00014,10]
[405821428,1771339551139,-712.39830494,0.00017536,2]
[405821441,1771339651082,-297.46178599,0.00017536,2]
[405821478,1771339836889,-305.668248,0.00017469,2]
[405821479,1771339836903,-41.78231817,0.00017469,2]
[405821480,1771339836913,-150.0,0.00017645,2]
[405821481,1771339836922,-325.49225896,0.00017754,2]
[405821482,1771339836931,-148.27642287,0.00018,2]
[405821483,1771339836949,-15.72357713,0.00018,2]
[405821484,1771339836959,-676.0,0.00018023,5]
[405821485,1771339836975,-212.34079057,0.00018281,2]
[405821487,1771339836989,-987.65920943,0.00018281,2]
[405821489,1771339836999,-4012.34079057,0.00018282,2]
[405821963,1771339842834,-1212.98326,0.00018282,2]
[405821967,1771339842848,-1265.50856503,0.00018282,2]
[405821969,1771339842859,-181.001,0.00018347,2]
[405821971,1771339842870,-743.45912368,0.00019198,2]
[405821973,1771339842879,-300.0,0.00019374,2]
[405821975,1771339842887,-164.2889371,0.000196,2]
[405821977,1771339842896,-177.0,0.00019645,2]
[405821980,1771339842906,-105243.01102964,0.0002,2]
[405821983,1771339842916,-4890.41082557,0.00020476,2]
[405821985,1771339842926,-2240.3132446,0.00020676,2]
[405821987,1771339842935,-339.076673,0.00020676,2]
[405821989,1771339842944,-180.303,0.00021095,2]
[405821991,1771339842953,-420.0,0.0002111,2]
[405821994,1771339842962,-181.0,0.00021347,2]
[405821996,1771339842971,-204.0,0.00021645,2]
[405821998,1771339842981,-166.22,0.00022,7]
[405822000,1771339842990,-242.0,0.00023,7]
[405822002,1771339842999,-587.0,0.00023001,2]
[405822004,1771339843008,-4890.4108255,0.00023251,2]
[405822006,1771339843018,-242.0,0.00023288,7]
[405822008,1771339843027,-231.0,0.00023645,2]
[405822010,1771339843036,-5000.0,0.00023656,2]
[405822012,1771339843049,-1447.9067158,0.00023666,2]
[405822015,1771339843059,-36344.61047624,0.00023978,2]
[405822061,1771339843493,-2660.26237605,0.00023978,2]
[405822063,1771339843505,-401.08659537,0.00023978,2]
[405822065,1771339843515,-2087.82051655,0.00023978,2]
[405822319,1771339846181,-599.0,0.00018282,5]
[405822321,1771339846191,-24.76931776,0.00023978,2]
[405822937,1771340284821,13979.65460189,0.000135,2]
[405822943,1771340481269,-300.0,0.00013497,2]
[405822944,1771340481295,-322.3258369,0.00013498,2]
[405822945,1771340481325,-500.0,0.00013498,2]
[405822946,1771340481356,-361.3224502,0.00013498,2]
[405822947,1771340481369,-138.6775498,0.00013498,2]
[405822948,1771340481378,-161.3224502,0.00013498,2]
[405822949,1771340481389,-322.3258369,0.00013498,2]
[405822950,1771340481400,-16.3517129,0.00013498,2]
[405822951,1771340481409,-483.6482871,0.00013498,2]
[405822952,1771340481421,-16.3517129,0.00013498,2]
[405822953,1771340481431,-483.6482871,0.00013498,2]
[405822981,1771340592824,467.48834018,0.00013,2]
[405822982,1771340600657,150.60614464,0.00013,2]
[405822984,1771340710668,651.63993517,0.00013,2]
[405822989,1771340741172,-500.0,0.00013171,2]
[405822990,1771340741194,-127.52486684,0.00013335,2]
[405822996,1771340826119,-22.47513316,0.00013335,2]
[405822997,1771340826140,-300.0,0.00013498,2]
[405822998,1771340826160,-500.0,0.00013499,2]
[405822999,1771340826182,-184.10273212,0.00013499,2]
[405823000,1771340837082,-315.89726788,0.00013499,2]
[405823001,1771340837104,-150.93754342,0.00013499,2]
[405823002,1771340847075,-349.06245658,0.00013499,2]
[405823003,1771340847094,-500.0,0.00013499,2]
[405823004,1771340847120,-500.0,0.00013499,2]
[405823005,1771340847142,-497.13435037,0.00013499,2]
[405823039,1771340954136,-300.0,0.00013498,2]
[405823040,1771340954160,-2.86564963,0.00013499,2]
[405823041,1771340954189,-500.0,0.00013499,2]
[405823042,1771340954216,-500.0,0.00013499,2]
[405823043,1771340954239,-23.22031586,0.00013499,2]
[405823044,1771340956074,-582.90364069,0.00013499,2]
[405823045,1771340956097,-500.0,0.00013499,2]
[405823046,1771340956122,-500.0,0.00013499,2]
[405823047,1771340956147,-292.50708983,0.00013499,2]
[405823048,1771340956171,-500.0,0.00013499,2]
[405823049,1771340956196,-500.0,0.00013499,2]
[405823050,1771340956219,-500.0,0.00013499,2]
[405823051,1771340956240,-500.0,0.00013499,2]
[405823052,1771340956262,-500.0,0.00013499,2]
[405823053,1771340956283,-500.0,0.00013499,2]
[405823054,1771340956303,-274.34634209,0.00013499,2]
[405823055,1771340956324,-275.70942542,0.00013499,2]
[405823056,1771340956344,-500.0,0.00013499,2]
[405823057,1771340956364,-5131.05288923,0.000135,2]
[405823058,1771340959089,-4397.39250888,0.000135,2]
[405823059,1771340959111,-500.0,0.00013699,2]
[405823060,1771340959135,-500.0,0.00013699,2]
[405823061,1771340959156,-286.60749112,0.00013699,2]
[405823062,1771340960089,-205.20560813,0.00013699,2]
[405823125,1771341038520,-150.0,0.00014247,2]
[405823127,1771341038530,-177.0,0.00016247,2]
[405823130,1771341038541,-606.0,0.00017778,2]
[405823133,1771341038551,-743.45912368,0.0001817,2]
[405823135,1771341038560,-204.0,0.00018247,2]
[405823137,1771341038570,-401.892998,0.00018877,2]
[405823139,1771341038580,-231.0,0.00020247,2]
[405823141,1771341038589,-180.303,0.000212,2]
[405823143,1771341038600,-181.0,0.00022,2]
[405823145,1771341038609,-181.0,0.00022192,7]
[405823147,1771341038619,-258.0,0.00022247,2]
[405823149,1771341038629,-181.0,0.00023014,7]
[405823151,1771341038638,-300.0,0.00023977,2]
[405823153,1771341038647,-3271.24365798,0.00023978,2]
[405823379,1771341040800,-551.16131768,0.00023978,2]
[405823923,1771341046315,-469.221,0.00023978,2]
[405823925,1771341046327,-54038.65946896,0.00023978,2]
[405823927,1771341046337,-166.93266953,0.00023978,3]
[405823929,1771341046346,-630.0,0.00023978,3]
[405823931,1771341046356,-630.0,0.00023978,3]
[405823933,1771341046366,-630.0,0.00023978,3]
[405823935,1771341046376,-630.0,0.00023978,3]
[405823938,1771341046386,-630.0,0.00023978,3]
[405823940,1771341046395,-630.0,0.00023978,3]
[405823941,1771341046405,-630.0,0.00023978,3]
[405823943,1771341046414,-630.0,0.00023978,3]
[405823946,1771341046424,-630.0,0.00023978,3]
[405823947,1771341046434,-630.0,0.00023978,3]
[405823949,1771341046443,-373.15818572,0.00023978,3]
[405823951,1771341046464,-505.0,0.00023978,10]
[405823953,1771341046479,-258.55,0.0002398,3]
[405823955,1771341046488,-775.67,0.0002398,3]
[405823957,1771341046499,-16006.84593756,0.0002399,2]
[405823960,1771341046513,-3584.69335146,0.0002399,2]
[405823962,1771341046525,-3423.22313095,0.0002399,2]
[405824830,1771341151822,891.11354073,0.00012804,2]
[405824854,1771341163476,1757.99399585,0.00014,3]
[405824856,1771341389898,1568.51,0.0001,2]
[405824858,1771341452326,600.0,0.0001256,2]
[405824859,1771341539682,5000.0,0.00013,2]
[405824860,1771341605589,169.08,0.0001,2]
[405824861,1771341606534,169.08,0.000103,2]
[405824862,1771341607084,169.08,0.000107,2]
[405824863,1771341607625,169.08,0.00011,2]
[405824887,1771341858459,1381.52097662,0.00013,2]
[405824889,1771342029093,-482.61507458,0.00013699,2]
[405824890,1771342029115,-567.35179646,0.00013699,2]
[405824891,1771342029135,-501.71719372,0.00013699,2]
[405824892,1771342029158,-150.0,0.00013758,2]
[405824893,1771342029181,-500.0,0.00014971,2]
[405824894,1771342029202,-300.0,0.00014986,2]
[405824895,1771342029223,-300.0,0.00014986,2]
[405824896,1771342029245,-300.0,0.00014987,2]
[405824897,1771342029266,-1200.0,0.00014987,2]
[405824898,1771342029430,-180.07937219,0.00014987,2]
[405824899,1771342029453,-500.0,0.00014987,2]
[405824900,1771342029476,-500.0,0.00014987,2]
[405824901,1771342029500,-500.0,0.00014987,2]
[405824902,1771342029522,-500.0,0.00014987,2]
[405824903,1771342029546,-365.83412109,0.00014987,2]
[405824904,1771342029567,-500.0,0.00014987,2]
[405824905,1771342029587,-500.0,0.00014987,2]
[405824906,1771342029609,-500.0,0.00014987,2]
[405824907,1771342029629,-500.0,0.00014987,2]
[405824908,1771342029650,-500.0,0.00014987,2]
[405824909,1771342029672,-500.0,0.00014987,2]
[405824910,1771342029693,-500.0,0.00014987,2]
[405824911,1771342029715,-500.0,0.00014987,2]
[405824912,1771342029735,-500.0,0.00014987,2]
[405824913,1771342029757,-227.47220357,0.00014987,2]
[405824914,1771342029778,-500.0,0.00014987,2]
[405824915,1771342029799,-500.0,0.00014987,2]
[405824916,1771342029820,-500.0,0.00014987,2]
[405824917,1771342029840,-500.0,0.00014987,2]
[405824918,1771342029861,-500.0,0.00014987,2]
[405824919,1771342029883,-500.0,0.00014987,2]
[405824920,1771342029904,-500.0,0.00014987,2]
[405824921,1771342029925,-500.0,0.00014987,2]
[405824922,1771342029946,-500.0,0.00014987,2]
[405824923,1771342029968,-500.0,0.00014987,2]
[405824924,1771342029990,-500.0,0.00014987,2]
[405824925,1771342030012,-500.0,0.00014987,2]
[405824926,1771342030034,-500.0,0.00014987,2]
[405824927,1771342030056,-500.0,0.00014987,2]
[405824928,1771342030076,-500.0,0.00014987,2]
[405824929,1771342030098,-500.0,0.00014987,2]
[405824930,1771342030119,-500.0,0.00014987,2]
[405824931,1771342030141,-500.0,0.00014987,2]
[405824932,1771342030163,-500.0,0.00014987,2]
[405824933,1771342030185,-500.0,0.00014987,2]
[405824934,1771342030206,-500.0,0.00014987,2]
[405824935,1771342030228,-500.0,0.00014987,2]
[405824936,1771342030250,-500.0,0.00014987,2]
[405824937,1771342030271,-500.0,0.00014987,2]
[405824938,1771342030293,-500.0,0.00014987,2]
[405824939,1771342030315,-300.0,0.00014987,2]
[405824940,1771342030334,-500.0,0.00014989,2]
[405824941,1771342030354,-500.0,0.00014991,2]
[405824942,1771342030375,-619.22647776,0.00014998,2]
[405824943,1771342030395,-194.9143938,0.00015543,2]
[405824944,1771342030417,-177.0,0.00015758,2]
[405824945,1771342030441,-420.0,0.00016402,2]
[405824946,1771342030463,-690.0,0.00016486,2]
[405824947,1771342030483,-204.0,0.00017758,2]
[405824948,1771342030505,-587.0,0.00017951,2]
[405824949,1771342030526,-513.0,0.00018205,5]
[405824950,1771342030548,-3667.80811916,0.00019544,2]
[405824951,1771342030567,-2172.0,0.00019644,2]
[405824952,1771342030587,-1381.0,0.00019644,2]
[405824953,1771342030607,-634.0,0.00019644,2]
[405824954,1771342030628,-823.0,0.00019647,2]
[405824955,1771342030651,-231.0,0.00019758,2]
[405824956,1771342030672,-1000.0,0.00019785,2]
[405824957,1771342030692,-164.8,0.00021369,2]
[405824958,1771342030713,-760.90951795,0.00021502,2]
[405824959,1771342036091,-391.09048205,0.00021502,2]
[405824960,1771342036112,-470.0,0.00021502,10]
[405824961,1771342036134,-258.0,0.00021758,2]
[405824962,1771342036154,-208.59521293,0.000219,2]
[405824963,1771342036175,-151.0,0.00022,2]
[405824964,1771342036195,-139.10363663,0.00022192,7]
[405824965,1771342041116,-11.89636337,0.00022192,7]
[405824966,1771342041137,-291.84035068,0.00022192,10]
[405824967,1771342044099,-376.46466377,0.00022192,10]
[405824969,1771342154100,-208.59521293,0.00013717,2]
[405824975,1771342221452,42.34713998,0.00013699,2]
[405825003,1771342232493,-41.82940708,0.00013699,2]
[405825004,1771342232580,-415.82345294,0.00013699,2]
[405825005,1771342232590,-3053.37893767,0.00017,2]
[405825006,1771342232600,-655.86767593,0.00018205,5]
[405825007,1771342232611,-564.13232407,0.00018205,5]
[405825008,1771342232620,-300.0,0.00020199,2]
[405825009,1771342232629,-289.56932851,0.00020199,2]
[405825010,1771342232639,-11073.34505581,0.000202,2]
[405825011,1771342232648,-420.0,0.0002199,2]
[405825012,1771342232657,-743.45912368,0.00022412,2]
[405825013,1771342232667,-197.85314018,0.00022544,2]
[405825014,1771342232677,-959.265,0.00022644,2]
[405825015,1771342232686,-1377.0,0.00022644,2]
[405825016,1771342232696,-499.99999901,0.00023,2]
[405825017,1771342232706,-1678.3644904,0.00023014,2]
[405825018,1771342232717,-151.0,0.00023014,7]
[405825019,1771342232727,-151.0,0.00023354,2]
[405825020,1771342232735,-210.07006332,0.00023354,2]
[405825021,1771342232744,-285.0,0.00023758,2]
[405825022,1771342232754,-500.0,0.00023888,2]
[405825023,1771342232763,-512.91206475,0.00023888,2]
[405825024,1771342232772,-436.6108862,0.000239,2]
[405825025,1771342232782,-587.0,0.0002394,2]
[405825026,1771342232791,-2000.0,0.00023989,2]
[405825027,1771342232801,-12150.83172701,0.0002399,2]
[405825086,1771342239092,-4401.63647447,0.0002399,2]
[405825106,1771342239279,-33.74852378,0.0002399,2]
[405825108,1771342239290,-60399.02085477,0.0002399,2]
[405825110,1771342239299,-820.0,0.0002399,10]
[405825112,1771342239308,-166.21,0.00024,7]
[405825114,1771342239318,-253.88815481,0.00024157,2]
[405825116,1771342239327,-155.0,0.00024164,7]
[405825118,1771342239336,-436.6108862,0.000243,2]
[405825120,1771342239345,-396.11705599,0.00024387,2]
[405825122,1771342239354,-800.0,0.00024529,2]
[405825124,1771342239363,-517.1,0.0002464,3]
[405825126,1771342239372,-89369.47748131,0.0002465,2]
[405825128,1771342239381,-150.0,0.00024658,2]
[405825130,1771342239391,-200.0,0.00024658,2]
[405825132,1771342239400,-380.0,0.00024658,2]
[405825134,1771342239409,-436.6108862,0.000247,2]
[405825136,1771342239419,-500.0,0.00024706,2]
[405825138,1771342239428,-500.0,0.00024706,2]
[405825140,1771342239437,-522.10750984,0.0002475,2]
[405825142,1771342239446,-500.0,0.00024761,2]
[405825144,1771342239455,-500.0,0.00024761,2]
[405825146,1771342239465,-18285.4117133,0.000248,2]
[405825148,1771342239474,-151.0,0.000248,7]
[405825150,1771342239486,-768.87,0.000248,30]
[405825152,1771342239495,-151.0,0.000248,2]
[405825154,1771342239504,-500.0,0.00024816,2]
[405825156,1771342239513,-500.0,0.00024816,2]
[405825158,1771342239522,-227.93389097,0.00024822,14]
[405825160,1771342239531,-429.51079838,0.0002487,2]
[405825162,1771342239540,-500.0,0.0002487,2]
[405825163,1771342239549,-4911.38,0.000249,2]
[405825166,1771342239560,-652.38,0.000249,14]
[405825167,1771342239569,-151.0,0.000249,8]
[405825169,1771342239579,-151.0,0.000249,10]
[405825171,1771342239587,-124393.1529319,0.000249,2]
[405825174,1771342239598,-111098.21696122,0.000249,2]
[405825614,1771342243857,-667.49712881,0.000155,2]
[405825616,1771342243869,-332.50287119,0.000155,2]
[405825618,1771342243878,-6449.44965489,0.000249,2]
[405826399,1771343154134,-724.91268107,0.00014836,3]
[405826400,1771343154155,-357.98292784,0.00014986,2]
[405826402,1771343244084,-297.46178599,0.00014688,3]
[405826403,1771343244107,-136.64189982,0.00014837,2]
[405826404,1771343333715,662.35,0.00013,2]
[405826429,1771343431643,-13.35810018,0.00014837,2]
[405826430,1771343431653,-142.01707216,0.00014986,2]
[405826431,1771343431664,-500.0,0.00014986,2]
[405826432,1771343431673,-177.0,0.00016837,2]
[405826433,1771343431683,-152.76626563,0.00017808,2]
[405826434,1771343431692,-300.0,0.00017808,2]
[405826435,1771343431702,-523.02904504,0.00017866,2]
[405826452,1771343437666,-378.98283652,0.00017866,2]
[405826454,1771343437675,-615.0,0.00018235,5]
[405826456,1771343437684,-204.0,0.00018837,2]
[405826458,1771343437694,-252.22097249,0.00019605,2]
[405826460,1771343437703,-743.45912368,0.00019701,2]
[405826462,1771343437713,-231.0,0.00020837,2]
[405826464,1771343437724,-1200.0,0.00020849,2]
[405826465,1771343437733,-300.0,0.0002085,2]
[405826466,1771343437742,-300.0,0.0002085,2]
[405826467,1771343437751,-300.0,0.0002085,2]
[405826468,1771343437759,-300.0,0.0002085,2]
[405826469,1771343437883,-5384.0665063,0.00020851,2]
[405826470,1771343437893,-8409.0968121,0.00020948,2]
[405826471,1771343437904,-200.946499,0.00021082,2]
[405826472,1771343437913,-500.0,0.00021503,2]
[405826473,1771343437922,-500.0,0.00021503,2]
[405826474,1771343437931,-1123.83217075,0.00021533,2]
[405826475,1771343437940,-420.0,0.00022683,2]
[405826476,1771343437949,-258.0,0.00022837,2]
[405826477,1771343437957,-250.0,0.00023259,2]
[405826478,1771343437966,-250.0,0.00023259,2]
[405826479,1771343437986,-250.0,0.00023259,2]
[405826480,1771343437996,-250.0,0.00023259,2]
[405826481,1771343438006,-250.0,0.00023259,2]
[405826482,1771343438015,-250.0,0.00023259,2]
[405826483,1771343438025,-174.61919141,0.00023259,2]
[405826485,1771343438035,-250.0,0.00023259,2]
[405826487,1771343438045,-250.0,0.00023259,2]
[405826489,1771343438055,-181.08010149,0.00023259,2]
[405826491,1771343438065,-250.0,0.00023259,2]
[405826493,1771343438074,-250.0,0.00023259,2]
[405826495,1771343438084,-187.78006525,0.00023259,2]
[405826497,1771343438094,-250.0,0.00023259,2]
[405826499,1771343438104,-266.91873962,0.00023259,2]
[405826502,1771343438113,-194.72792766,0.00023259,2]
[405826504,1771343438124,-250.0,0.00023259,2]
[405826506,1771343438134,-201.93286099,0.00023259,2]
[405826508,1771343438143,-250.0,0.00023259,2]
[405826510,1771343438153,-209.40437684,0.00023259,2]
[405826512,1771343438163,-250.0,0.00023259,2]
[405826514,1771343438173,-217.15233878,0.00023259,2]
[405826516,1771343438183,-225.18697532,0.00023259,2]
[405826518,1771343438192,-500.0,0.00023259,2]
[405826520,1771343438202,-233.51889341,0.00023259,2]
[405826522,1771343438212,-500.0,0.00023259,2]
[405826524,1771343438222,-242.15909246,0.00023259,2]
[405826526,1771343438232,-251.11897888,0.00023259,2]
[405826528,1771343438242,-500.0,0.00023259,2]
[405826530,1771343438252,-260.4103811,0.00023259,2]
[405826532,1771343438262,-500.0,0.00023259,2]
[405826534,1771343438272,-250.0,0.00023259,2]
[405826536,1771343438282,-201.48467761,0.00023259,2]
[405826538,1771343438292,-500.0,0.00023259,2]
[405826540,1771343438301,-250.0,0.00023259,2]
[405826542,1771343438311,-500.0,0.00023259,2]
[405826544,1771343438321,-250.0,0.00023259,2]
[405826546,1771343438331,-500.0,0.00023259,2]
[405826548,1771343438342,-250.0,0.00023259,2]
[405826550,1771343438352,-500.0,0.00023259,2]
[405826552,1771343438363,-250.0,0.00023259,2]
[405826554,1771343438373,-500.0,0.00023259,2]
[405826556,1771343438383,-250.0,0.00023259,2]
[405826559,1771343438393,-500.0,0.00023259,2]
[405826561,1771343438403,-273.28855637,0.00023259,2]